fUST/lending_fUST_20260227
["ID","MTS","AMOUNT","RATE_DAILY","PERIOD"]
[406766950,1772167844509,-1000.0,0.000152,2]
[406766951,1772167844518,-165.0,0.000153,2]
[406766952,1772167844527,-225.18697532,0.00015309,2]
[406766954,1772167844537,-334.14727572,0.00015316,2]
[406766956,1772167844546,-715.0,0.00015342,2]
[406766958,1772167844555,-399.69968161,0.00015342,2]
[406766960,1772167844565,-962.91259867,0.00015342,2]
[406766962,1772167844575,-1991.77053508,0.00015342,2]
[406766964,1772167844584,-766.71756535,0.00015343,2]
[406766966,1772167844594,-388.0,0.00015375,2]
[406766968,1772167844604,-1613.0,0.00015385,2]
[406766970,1772167844614,-1750.93158309,0.00015399,11]
[406766972,1772167844623,-162.0,0.00015429,2]
[406766973,1772167844632,-500.201,0.00015456,2]
[406766975,1772167844642,-1089.91154139,0.00015464,2]
[406766977,1772167844651,-249589.73811963,0.00015498,2]
[406766979,1772167844661,-151.0,0.000155,2]
[406766981,1772167844671,-377.49178821,0.00015553,2]
[406766983,1772167844681,-403.0,0.00015567,2]
[406766985,1772167844691,-151.0,0.000156,2]
[406766987,1772167844701,-5029.65598997,0.0001564,2]
[406766989,1772167844711,-715.0,0.00015662,2]
[406766991,1772167844720,-406.0,0.00015662,2]
[406766993,1772167844730,-2000.0,0.000157,2]
[406766995,1772167844739,-1095.97526162,0.000157,30]
[406766997,1772167844748,-160.2,0.000157,2]
[406766999,1772167844758,-37915.0,0.000157,2]
[406767001,1772167844768,-229.6950387,0.000157,2]
[406767003,1772167844778,-182.57601557,0.000157,2]
[406767005,1772167844787,-202.72092055,0.000157,2]
[406767007,1772167844797,-164.55719009,0.000157,2]
[406767009,1772167844806,-2000.0,0.000158,2]
[406767011,1772167844815,-151.0,0.000158,2]
[406767013,1772167844824,-251.07128009,0.000158,2]
[406767015,1772167844834,-218.99709187,0.000158,2]
[406767017,1772167844843,-233.51889341,0.00015857,2]
[406767019,1772167844852,-165.0,0.000159,2]
[406767021,1772167844861,-403.0,0.00015982,2]
[406767023,1772167844870,-2499.99999999,0.00016,2]
[406767025,1772167844880,-1000.0,0.00016,2]
[406767027,1772167844890,-715.0,0.00016019,2]
[406767029,1772167844900,-2000.0,0.00016066,2]
[406767031,1772167844909,-523.0,0.00016066,2]
[406767033,1772167844918,-450.0,0.00016066,2]
[406767035,1772167844928,-450.0,0.00016066,2]
[406767037,1772167844938,-450.0,0.00016066,2]
[406767039,1772167844947,-450.0,0.00016066,2]
[406767041,1772167844957,-450.0,0.00016066,2]
[406767043,1772167844967,-450.0,0.00016066,2]
[406767045,1772167844977,-455.0,0.00016066,2]
[406767047,1772167844986,-10000.0,0.000161,2]
[406767049,1772167844996,-151.0,0.000161,2]
[406767051,1772167845006,-2000.0,0.00016135,2]
[406767053,1772167845015,-2000.0,0.00016135,2]
[406767055,1772167845024,-2000.0,0.00016135,2]
[406767058,1772167845036,-2000.0,0.00016135,2]
[406767059,1772167845045,-2000.0,0.00016135,2]
[406767061,1772167845055,-2000.0,0.00016135,2]
[406767063,1772167845064,-2000.0,0.00016135,2]
[406767065,1772167845073,-2000.0,0.00016135,2]
[406767067,1772167845083,-2000.0,0.00016135,2]
[406767069,1772167845091,-2000.0,0.00016135,2]
[406767071,1772167845101,-2000.0,0.00016135,2]
[406767073,1772167845110,-2000.0,0.00016135,2]
[406767075,1772167845119,-2000.0,0.00016135,2]
[406767077,1772167845128,-2000.0,0.00016135,2]
[406767079,1772167845138,-628.0,0.00016135,2]
[406767081,1772167845147,-500.0,0.00016135,2]
[406767083,1772167845156,-500.0,0.00016135,2]
[406767085,1772167845166,-500.0,0.00016135,2]
[406767087,1772167845175,-500.0,0.00016135,2]
[406767089,1772167845184,-500.0,0.00016135,2]
[406767091,1772167845194,-500.0,0.00016135,2]
[406767093,1772167845205,-500.0,0.00016135,2]
[406767094,1772167845215,-500.0,0.00016135,2]
[406767096,1772167845225,-500.0,0.00016135,2]
[406767099,1772167845235,-500.0,0.00016135,2]
[406767101,1772167845246,-500.0,0.00016135,2]
[406767103,1772167845256,-500.0,0.00016135,2]
[406767105,1772167845267,-500.0,0.00016135,2]
[406767106,1772167845277,-500.0,0.00016135,2]
[406767108,1772167845287,-500.0,0.00016135,2]
[406767110,1772167845297,-500.0,0.00016135,2]
[406767113,1772167845307,-500.0,0.00016135,2]
[406767114,1772167845317,-500.0,0.00016135,2]
[406767116,1772167845327,-500.0,0.00016135,2]
[406767118,1772167845337,-500.0,0.00016135,2]
[406767120,1772167845347,-500.0,0.00016135,2]
[406767122,1772167845357,-500.0,0.00016135,2]
[406767124,1772167845367,-500.0,0.00016135,2]
[406767127,1772167845378,-500.0,0.00016135,2]
[406767128,1772167845388,-1750.93158309,0.00016184,13]
[406767130,1772167845399,-2000.0,0.00016233,2]
[406767132,1772167845409,-2000.0,0.00016233,2]
[406767134,1772167845419,-2000.0,0.00016233,2]
[406767137,1772167845429,-2000.0,0.00016233,2]
[406767138,1772167845439,-2000.0,0.00016233,2]
[406767140,1772167845449,-2000.0,0.00016233,2]
[406767142,1772167845459,-2000.0,0.00016233,2]
[406767145,1772167845470,-2000.0,0.00016233,2]
[406767147,1772167845481,-2000.0,0.00016233,2]
[406767149,1772167845490,-2000.0,0.00016233,2]
[406767150,1772167845500,-2000.0,0.00016233,2]
[406767152,1772167845510,-2000.0,0.00016233,2]
[406767154,1772167845520,-2000.0,0.00016233,2]
[406767156,1772167845531,-2000.0,0.00016233,2]
[406767158,1772167845541,-2000.0,0.00016233,2]
[406767160,1772167845552,-2000.0,0.00016233,2]
[406767162,1772167845561,-2000.0,0.00016233,2]
[406767164,1772167845571,-2000.0,0.00016233,2]
[406767170,1772167845735,-2000.0,0.00016233,2]
[406767171,1772167845746,-2000.0,0.00016233,2]
[406767173,1772167845756,-2000.0,0.00016233,2]
[406767174,1772167845767,-2000.0,0.00016233,2]
[406767176,1772167845780,-2000.0,0.00016233,2]
[406767177,1772167845799,-2000.0,0.00016233,2]
[406767179,1772167845812,-2000.0,0.00016233,2]
[406767180,1772167845826,-2000.0,0.00016233,2]
[406767182,1772167845841,-2000.0,0.00016233,2]
[406767184,1772167845851,-1993.0,0.00016233,2]
[406767186,1772167845862,-500.0,0.00016233,2]
[406767188,1772167845872,-500.0,0.00016233,2]
[406767189,1772167845882,-500.0,0.00016233,2]
[406767190,1772167845891,-500.0,0.00016233,2]
[406767191,1772167845901,-500.0,0.00016233,2]
[406767192,1772167845910,-500.0,0.00016233,2]
[406767193,1772167845920,-706.46567162,0.00016248,2]
[406767194,1772167845931,-163.0,0.000163,2]
[406767196,1772167845940,-13795.70119375,0.00016377,2]
[406767197,1772167845950,-1000.0,0.00016393,2]
[406767198,1772167845960,-492.0,0.00016393,2]
[406767199,1772167845971,-151.0,0.000164,2]
[406767200,1772167845981,-242.15909246,0.00016405,2]
[406767201,1772167845991,-278.6,0.00016438,2]
[406767202,1772167846001,-151.0,0.00016438,2]
[406767203,1772167846011,-151.0,0.00016438,2]
[406767204,1772167846020,-151.0,0.00016438,2]
[406767206,1772167846029,-151.0,0.00016438,2]
[406767208,1772167846038,-151.0,0.00016438,2]
[406767209,1772167846048,-151.0,0.00016438,2]
[406767210,1772167846058,-150.0,0.00016438,2]
[406767211,1772167846068,-3000.0,0.00016438,2]
[406767212,1772167846078,-3000.0,0.00016438,2]
[406767213,1772167846088,-3000.0,0.00016438,2]
[406767215,1772167846098,-3000.0,0.00016438,2]
[406767217,1772167846108,-3000.0,0.00016438,2]
[406767219,1772167846118,-2884.66334,0.00016438,2]
[406767221,1772167846128,-26291.44799168,0.00016468,2]
[406767222,1772167846138,-34212.72641582,0.00016468,2]
[406767223,1772167846148,-254568.33755587,0.00016468,2]
[406767232,1772167847031,-2623.56844639,0.00015543,2]
[406767233,1772167847044,-14029.48842431,0.00015543,2]
[406767234,1772167847055,-189231.6537673,0.00016468,2]
[406767240,1772168429806,1016.14640754,9.501e-05,2]
[406767243,1772168681705,158.4,0.000158,120]
[406767294,1772169032425,-554.0,9.603e-05,2]
[406767296,1772169032435,-225.047355,9.615e-05,2]
[406767299,1772169032444,-213.98,9.7e-05,2]
[406767302,1772169032453,-437.68647769,9.729e-05,2]
[406767305,1772169032463,-5377.0,0.0001,2]
[406767307,1772169032474,-205.8931002,0.000103,2]
[406767309,1772169032483,-1200.0,0.00011297,2]
[406767311,1772169032497,-300.0,0.00011301,2]
[406767313,1772169032506,-300.0,0.00011301,2]
[406767315,1772169032515,-4852.24735624,0.00011302,2]
[406767317,1772169032527,-440.41335325,0.00011302,2]
[406767339,1772169032780,-329.51550071,0.00011302,2]
[406767340,1772169032795,-478.8078631,0.00011303,2]
[406767358,1772169038491,-1703.1921369,0.00011303,2]
[406767360,1772169038501,-637.0,0.00011303,2]
[406767362,1772169038510,-1387.0,0.00011303,2]
[406767364,1772169038520,-470.343,0.00011303,2]
[406767366,1772169038532,-556.684,0.00011303,2]
[406767368,1772169038544,-729.0,0.00011303,2]
[406767370,1772169038554,-150.384,0.00011399,2]
[406767372,1772169038564,-150.0,0.00011399,2]
[406767375,1772169038574,-150.0,0.00011399,2]
[406767376,1772169038583,-265.5558789,0.00011615,2]
[406767379,1772169038593,-420.0,0.00012415,2]
[406767381,1772169038602,-7867.49607412,0.000125,2]
[406767383,1772169038616,-2433.95599066,0.000125,2]
[406767385,1772169038626,-522.95467814,0.000131,2]
[406767668,1772169045428,-2570.15945001,0.000131,2]
[406767669,1772169045438,-417.43255925,0.000132,2]
[406767670,1772169045543,-368.56744075,0.000132,2]
[406767671,1772169045553,-171.58523616,0.00013263,2]
[406767672,1772169045562,-500.0,0.00013263,2]
[406767673,1772169045573,-500.0,0.00013263,2]
[406767674,1772169045583,-500.0,0.00013263,2]
[406767675,1772169045592,-500.0,0.00013263,2]
[406767676,1772169045602,-500.0,0.00013263,2]
[406767677,1772169045612,-500.0,0.00013263,2]
[406767678,1772169045621,-327.18053384,0.00013263,2]
[406767681,1772169046362,-172.81946616,0.00013263,2]
[406767682,1772169046371,-500.0,0.00013263,2]
[406767683,1772169046380,-500.0,0.00013263,2]
[406767684,1772169046390,-500.0,0.00013263,2]
[406767685,1772169046399,-217.61409184,0.00013263,2]
[406767686,1772169046408,-500.0,0.00013263,2]
[406767687,1772169046417,-500.0,0.00013263,2]
[406767688,1772169046426,-500.0,0.00013263,2]
[406767689,1772169046436,-500.0,0.00013263,2]
[406767690,1772169046445,-500.0,0.00013263,2]
[406767691,1772169046454,-456.55504655,0.00013263,2]
[406767692,1772169046463,-500.0,0.00013263,2]
[406767693,1772169046471,-500.0,0.00013263,2]
[406767694,1772169046480,-514.58750609,0.00013263,2]
[406767695,1772169046491,-500.0,0.00013263,2]
[406767696,1772169046504,-227.35178748,0.00013263,2]
[406767697,1772169046513,-500.0,0.00013263,2]
[406767698,1772169046522,-432.50263128,0.00013263,2]
[406767703,1772170012099,-298.42025008,0.00011678,2]
[406767780,1772170238607,-300.0,0.00011678,2]
[406767782,1772170238617,-584.0,0.00011678,2]
[406767784,1772170238626,-215.23529032,0.00011678,2]
[406767786,1772170238635,-2182.0,0.00011679,2]
[406767787,1772170238645,-1387.0,0.00011679,2]
[406767790,1772170238654,-637.0,0.00011679,2]
[406767791,1772170238663,-729.0,0.00011679,2]
[406767793,1772170238672,-430.0,0.00011679,2]
[406767795,1772170238682,-556.684,0.00011679,2]
[406767798,1772170238692,-264.1421529,0.00012361,2]
[406767799,1772170238701,-10439.12519849,0.00012361,2]
[406768290,1772170243692,-742.03970581,0.00012361,2]
[406768292,1772170243702,-180.333844,0.00012361,2]
[406768294,1772170243711,-420.0,0.00012824,2]
[406768296,1772170243720,-155.20890123,0.00013105,2]
[406768298,1772170243729,-79.02737059,0.00013105,2]
[406768300,1772170243740,-76.18153064,0.00013105,2]
[406768302,1772170243749,-500.0,0.00013273,2]
[406768304,1772170243758,-215.98556753,0.00013273,2]
[406768594,1772170246497,-284.01443247,0.00013273,2]
[406768596,1772170246506,-2128.51211883,0.00013273,2]
[406768598,1772170246515,-637.0,0.000133,2]
[406768600,1772170246524,-500.0,0.00013309,2]
[406768602,1772170246533,-166.18462047,0.0001331,2]
[406768604,1772170246542,-500.0,0.00013364,2]
[406768606,1772170246551,-500.0,0.00013419,2]
[406768608,1772170246560,-500.0,0.00013473,2]
[406768610,1772170246569,-2706.47486214,0.00013481,2]
[406768612,1772170246577,-99.24449549,0.00013528,2]
[406768614,1772170246589,-306.0,0.00013528,2]
[406769365,1772171428217,190.98,9.501e-05,2]
[406769395,1772171431649,-192.97408801,0.00010224,2]
[406769398,1772171431663,-210.93058452,0.00010933,2]
[406769399,1772171431674,-300.0,0.00010998,2]
[406769400,1772171431683,-76.54568499,0.00010999,2]
[406770088,1772171442913,-423.45431501,0.00010999,2]
[406770090,1772171442923,-500.0,0.00010999,2]
[406770092,1772171442932,-36.90718053,0.00010999,2]
[406772641,1772172631717,-4859.26461882,0.00010354,2]
[406772643,1772172631728,-206.71197282,0.00010593,2]
[406772645,1772172631737,-300.0,0.00010998,2]
[406772647,1772172631747,-500.0,0.00010999,2]
[406772649,1772172631756,-500.0,0.00010999,2]
[406772651,1772172631765,-155.38722695,0.00010999,2]
[406772653,1772172631777,-344.61277305,0.00010999,2]
[406772655,1772172631786,-460.62662179,0.00010999,2]
[406773938,1772172645868,-39.37337821,0.00010999,2]
[406773940,1772172645877,-278.33262179,0.00010999,2]
[406775560,1772173613603,5000.0,9.501e-05,2]
[406775561,1772173619084,-298.42025008,9.667e-05,2]
[406775562,1772173635859,5000.0,9.501e-05,2]
[406775563,1772173657892,330.081705,9.501e-05,2]
[406775564,1772173802346,1196.86572347,9.501e-05,2]
[406775565,1772173824148,-222.13935657,9.716e-05,2]
[406775566,1772173824177,-556.0,9.716e-05,2]
[406775567,1772173824205,-300.0,9.765e-05,2]
[406775568,1772173824233,-168.0,9.765e-05,2]
[406775569,1772173824251,-222.13935657,9.766e-05,2]
[406775570,1772173824270,-556.0,9.766e-05,2]
[406775571,1772173824288,-300.0,9.766e-05,2]
[406775572,1772173824299,-168.0,9.766e-05,2]
[406775573,1772173824313,-785.72395473,9.766e-05,2]
[406775636,1772173838026,-7958.3196505,9.766e-05,2]
[406775638,1772173838036,-153.55,0.00010014,2]
[406775640,1772173838045,-179.1077466,0.00010421,2]
[406775642,1772173838054,-420.0,0.00010741,2]
[406775644,1772173838063,-500.0,0.00010995,2]
[406775646,1772173838073,-500.0,0.00010995,2]
[406775648,1772173838082,-500.0,0.00010995,2]
[406775650,1772173838091,-500.0,0.00010995,2]
[406775652,1772173838100,-500.0,0.00010995,2]
[406775654,1772173838110,-500.0,0.00010995,2]
[406775656,1772173838119,-500.0,0.00010995,2]
[406775658,1772173838128,-500.0,0.00010995,2]
[406775660,1772173838137,-500.0,0.00010995,2]
[406775662,1772173838146,-500.0,0.00010995,2]
[406775664,1772173838155,-500.0,0.00010995,2]
[406775666,1772173838164,-500.0,0.00010995,2]
[406775668,1772173838173,-500.0,0.00010995,2]
[406775670,1772173838183,-500.0,0.00010995,2]
[406775672,1772173838192,-278.77018991,0.00010995,2]
[406775674,1772173838202,-500.0,0.00010995,2]
[406775676,1772173838211,-500.0,0.00010995,2]
[406775678,1772173838221,-500.0,0.00010995,2]
[406775680,1772173838230,-500.0,0.00010995,2]
[406775682,1772173838239,-500.0,0.00010995,2]
[406775684,1772173838248,-500.0,0.00010995,2]
[406775686,1772173838257,-500.0,0.00010995,2]
[406775688,1772173838266,-500.0,0.00010995,2]
[406775690,1772173838275,-500.0,0.00010995,2]
[406775692,1772173838284,-500.0,0.00010995,2]
[406775694,1772173838293,-500.0,0.00010995,2]
[406775696,1772173838303,-500.0,0.00010995,2]
[406775698,1772173838313,-500.0,0.00010995,2]
[406775700,1772173838322,-500.0,0.00010995,2]
[406775702,1772173838332,-500.0,0.00010995,2]
[406775704,1772173838341,-500.0,0.00010995,2]
[406775706,1772173838350,-500.0,0.00010995,2]
[406775708,1772173838360,-500.0,0.00010995,2]
[406775710,1772173838369,-500.0,0.00010995,2]
[406775712,1772173838378,-500.0,0.00010995,2]
[406775714,1772173838388,-500.0,0.00010995,2]
[406775717,1772173838398,-500.0,0.00010995,2]
[406775719,1772173838408,-500.0,0.00010995,2]
[406775721,1772173838422,-500.0,0.00010995,2]
[406775723,1772173838431,-620.75175269,0.00010995,2]
[406775725,1772173838442,-500.0,0.00010995,2]
[406775727,1772173838452,-500.0,0.00010995,2]
[406775729,1772173838462,-500.0,0.00010995,2]
[406775731,1772173838472,-500.0,0.00010995,2]
[406775733,1772173838481,-500.0,0.00010995,2]
[406775736,1772173838491,-500.0,0.00010995,2]
[406775738,1772173838500,-500.0,0.00010995,2]
[406775740,1772173838511,-500.0,0.00010995,2]
[406775742,1772173838521,-500.0,0.00010995,2]
[406775744,1772173838532,-500.0,0.00010995,2]
[406775746,1772173838542,-500.0,0.00010995,2]
[406775748,1772173838551,-500.0,0.00010995,2]
[406775750,1772173838561,-500.0,0.00010995,2]
[406775752,1772173838571,-500.0,0.00010995,2]
[406775754,1772173838580,-500.0,0.00010995,2]
[406775756,1772173838590,-500.0,0.00010995,2]
[406775758,1772173838599,-500.0,0.00010995,2]
[406775760,1772173838609,-500.0,0.00010995,2]
[406775762,1772173838618,-500.0,0.00010995,2]
[406775764,1772173838627,-500.0,0.00010995,2]
[406775766,1772173838636,-500.0,0.00010995,2]
[406775768,1772173838646,-500.0,0.00010995,2]
[406775770,1772173838655,-500.0,0.00010995,2]
[406775772,1772173838664,-500.0,0.00010995,2]
[406775774,1772173838673,-500.0,0.00010995,2]
[406775776,1772173838683,-500.0,0.00010995,2]
[406775778,1772173838694,-500.0,0.00010995,2]
[406775780,1772173838703,-500.0,0.00010995,2]
[406775782,1772173838713,-500.0,0.00010995,2]
[406775785,1772173838722,-500.0,0.00010995,2]
[406775787,1772173838732,-500.0,0.00010995,2]
[406775789,1772173838742,-500.0,0.00010995,2]
[406775791,1772173838751,-500.0,0.00010995,2]
[406775793,1772173838760,-500.0,0.00010995,2]
[406775795,1772173838771,-500.0,0.00010995,2]
[406775797,1772173838780,-542.20558879,0.00010995,2]
[406775799,1772173838790,-456.55504655,0.00010995,2]
[406775801,1772173838804,-500.0,0.00010995,2]
[406775803,1772173838813,-500.0,0.00010995,2]
[406775805,1772173838823,-500.0,0.00010995,2]
[406775807,1772173838834,-500.0,0.00010995,2]
[406775809,1772173838846,-500.0,0.00010995,2]
[406775811,1772173838855,-500.0,0.00010995,2]
[406775813,1772173838865,-345.98024407,0.00010995,2]
[406775815,1772173838877,-500.0,0.00010995,2]
[406775817,1772173838886,-500.0,0.00010995,2]
[406775820,1772173838896,-500.0,0.00010995,2]
[406775822,1772173838906,-500.0,0.00010995,2]
[406775823,1772173838915,-504.10072876,0.00010995,2]
[406775825,1772173838925,-500.0,0.00010995,2]
[406775828,1772173838934,-500.0,0.00010995,2]
[406775830,1772173838944,-500.0,0.00010995,2]
[406775832,1772173838954,-500.0,0.00010995,2]
[406775834,1772173838963,-500.0,0.00010995,2]
[406775836,1772173838972,-500.0,0.00010995,2]
[406775838,1772173838982,-500.0,0.00010995,2]
[406775840,1772173838992,-500.0,0.00010995,2]
[406775842,1772173839001,-497.30427695,0.00010995,2]
[406775844,1772173839011,-72.92447634,0.00010995,2]
[406775846,1772173839024,-427.07552366,0.00010995,2]
[406775848,1772173839033,-500.0,0.00010995,2]
[406775850,1772173839043,-500.0,0.00010995,2]
[406775852,1772173839052,-500.0,0.00010995,2]
[406775854,1772173839061,-500.0,0.00010995,2]
[406775856,1772173839071,-500.0,0.00010995,2]
[406775858,1772173839080,-500.0,0.00010995,2]
[406775860,1772173839090,-500.0,0.00010995,2]
[406775862,1772173839099,-1989.61851761,0.00010995,2]
[406775865,1772173839110,-1677.57177475,0.00010995,2]
[406775867,1772173839119,-316.70727423,0.00010999,2]
[406775869,1772173839129,-500.0,0.00010999,2]
[406775871,1772173839138,-500.0,0.00010999,2]
[406775873,1772173839147,-301.13209858,0.00010999,2]
[406775875,1772173839157,-500.0,0.00010999,2]
[406775877,1772173839166,-5227.36086385,0.00011,2]
[406775879,1772173839178,-3208.68971196,0.00011,2]
[406776309,1772173844884,-75690.94942419,0.00011,2]
[406776310,1772173844894,-5751.84058697,0.00011684,2]
[406776311,1772173844903,-262.12444076,0.00011716,2]
[406776312,1772173844912,-637.0,0.00011784,2]
[406776313,1772173844921,-2182.0,0.00011784,2]
[406776314,1772173844931,-442.85688128,0.00011784,2]
[406776315,1772173845006,-286.14311872,0.00011784,2]
[406776316,1772173845016,-470.343,0.00011784,2]
[406776317,1772173845027,-556.684,0.00011784,2]
[406776318,1772173845036,-587.0,0.00011815,2]
[406776319,1772173845046,-150.0,0.00011839,2]
[406776320,1772173845055,-2094.84292891,0.00012086,2]
[406776321,1772173846005,-316.73092354,0.00012086,2]
[406776426,1772174247400,326.47580997,0.0001,3]
[406776427,1772175002487,161.65797276,9.313e-05,2]
[406776466,1772175038373,-560.0,0.0001,2]
[406776468,1772175038383,-227.69408063,0.00010051,2]
[406776470,1772175038392,-162.6162595,0.00010835,2]
[406776472,1772175038403,-149.92666688,0.00010835,2]
[406776474,1772175038415,-142.48989095,0.00010835,2]
[406776477,1772175038425,-180.28649695,0.00010999,2]
[406776728,1772175040869,-150.46066433,0.00010999,2]
[406776730,1772175040878,-377.99675575,0.00010999,2]
[406776733,1772175040888,-40.55927164,0.00010999,2]
[406776738,1772175040934,-549.47003929,0.00010999,2]
[406776740,1772175040944,-173.05419003,0.00011,3]
[406776743,1772175040957,-300.0,0.00011092,2]
[406776745,1772175040967,-5480.13935434,0.00011093,2]
[406776747,1772175040976,-1352.22865561,0.00011093,2]
[406776984,1772175043395,-8352.93,0.00011093,2]
[406777248,1772175046330,-951.74501199,0.00011093,2]
[406777250,1772175046340,-180.3338441,0.00011093,2]
[406777251,1772175046349,-445.96984575,0.00011489,2]
[406777252,1772175046359,-182.79557506,0.00011526,2]
[406777253,1772175046368,-121.13096845,0.00011583,2]
[406777381,1772176238564,-300.0,0.00010999,2]
[406777382,1772176238574,-300.0,0.00010999,2]
[406777383,1772176238583,-235.38019901,0.00010999,2]
[406777384,1772176238593,-281.80288392,0.00011,2]
[406777385,1772176238603,-439.87668912,0.00011,2]
[406777386,1772176238613,-124.40431695,0.00011,2]
[406777388,1772176238770,-375.59568305,0.00011,2]
[406777390,1772176238779,-300.56449424,0.00011,2]
[406777392,1772176238788,-343.50227913,0.00011,2]
[406777394,1772176238797,-536.18558883,0.00011,2]
[406777396,1772176238806,-323.23080554,0.00011094,2]
[406777398,1772176238815,-1331.89782463,0.00011094,2]
[406778615,1772177199110,-298.42025008,0.00010982,2]
[406778669,1772177439134,-300.0,0.00011093,2]
[406778671,1772177439143,-300.0,0.00011093,2]
[406778673,1772177439152,-235.18027583,0.00011093,2]
[406778674,1772177439161,-3235.95332116,0.00011094,2]
[406778676,1772177439172,-390.10329228,0.00011094,2]
[406778677,1772177439310,-6847.35958797,0.00011094,2]
[406778687,1772177443618,-1234.3267238,0.00011094,2]
[406778693,1772178242811,158.87435556,9.312e-05,2]
[406778795,1772178637945,-245.86459849,9.823e-05,2]
[406778796,1772178637955,-3296.11,0.0001,2]
[406778797,1772178637964,-300.0,0.00010455,2]
[406778798,1772178637974,-2229.0066051,0.00010456,2]
[406778799,1772178637986,-867.83347096,0.00010456,2]
[406778861,1772178640229,-381.25368888,0.00010456,2]
[406778863,1772178640241,-689.13360397,0.00010456,2]
[406779135,1772178643015,-2703.55962519,0.00010456,2]
[406779137,1772178643026,-437.8891495,0.00010938,2]
[406779139,1772178643036,-200.0,0.00011,2]
[406779141,1772178643048,-14872.1926524,0.00011202,2]
[406779143,1772178643056,-716.63090245,0.00011446,2]
[406779145,1772178643068,-165.2104204,0.00011462,2]
[406779147,1772178643078,-155.0,0.00011495,2]
[406779148,1772178643088,-150.0,0.00011567,2]
[406779149,1772178643099,-167.36662452,0.00011567,2]
[406779150,1772178643109,-150.0,0.00011567,2]
[406779151,1772178643120,-178.53601703,0.00011567,2]
[406779152,1772178643131,-250.0,0.00011569,2]
[406779153,1772178643140,-250.0,0.00011569,2]
[406779154,1772178643152,-250.0,0.00011569,2]
[406779155,1772178643163,-250.0,0.00011569,2]
[406779156,1772178643173,-500.0,0.00011569,2]
[406779157,1772178643184,-500.0,0.00011569,2]
[406779158,1772178643195,-250.0,0.00011569,2]
[406779159,1772178643206,-250.0,0.00011569,2]
[406779161,1772178643217,-250.0,0.00011569,2]
[406779163,1772178643233,-250.0,0.00011569,2]
[406779165,1772178643244,-250.0,0.00011569,2]
[406779167,1772178643255,-250.0,0.00011569,2]
[406779169,1772178643265,-250.0,0.00011569,2]
[406779171,1772178643275,-500.0,0.00011569,2]
[406779173,1772178643284,-581.28624001,0.00011569,2]
[406779175,1772178643294,-500.0,0.00011569,2]
[406779177,1772178643303,-500.0,0.00011569,2]
[406779179,1772178643312,-500.0,0.00011569,2]
[406779181,1772178643321,-500.0,0.00011569,2]
[406779183,1772178643330,-500.0,0.00011569,2]
[406779185,1772178643339,-190.27773556,0.00011569,2]
[406779187,1772178643348,-500.0,0.00011569,2]
[406779189,1772178643357,-500.0,0.00011569,2]
[406779191,1772178643365,-500.0,0.00011569,2]
[406779193,1772178643374,-500.0,0.00011573,2]
[406779195,1772178643383,-500.0,0.00011573,2]
[406779197,1772178643392,-500.0,0.00011573,2]
[406779199,1772178643403,-500.0,0.00011573,2]
[406779201,1772178643412,-500.0,0.00011573,2]
[406779203,1772178643421,-278.77018991,0.00011573,2]
[406779205,1772178643430,-500.0,0.00011573,2]
[406779207,1772178643439,-500.0,0.00011573,2]